Cogmind - Beta 16 @@@ ROGUE MODE // 2025.11.10 @ 07:38:21 Player: Dadrick Result: Destroyed by TH-XIE(R) with Subdweller Beam Cannon Performance ------------- Evolutions (0) 0 Regions Visited (3) 600 Robots Destroyed (43) 215 Value Destroyed (1058) 1058 Prototype IDs (0) 0 Alien Tech Used (0) 0 Bonus (0) 0 TOTAL SCORE: 1873 Bonus ------- None Cogmind --------- Core Integrity 0/250 Matter 183/300 Energy 100/100 System Corruption 0% Temperature Cool (37) Movement Walking (120) Location -10/Subcaves Parts ------- > --- POWER (1) -------- (None) > --- PROPULSION (2) --- Aluminum Leg Aluminum Leg > --- UTILITY (2) ------ (None) > --- WEAPON (2) ------- Subdweller Machine Gun Heavy Battle Rifle > --- INVENTORY (5) ---- Aluminum Leg Scrap Shield Subdweller Machine Gun Scrap Shield Fragment (47) Peak State ------------ > --- POWER ------------ Light Ion Engine > --- PROPULSION ------- Aluminum Leg Aluminum Leg > --- UTILITY ---------- Scrap Shield > --- WEAPON ----------- Shotgun Heavy Battle Rifle > --- INVENTORY -------- Aluminum Leg Subdweller Beam Cannon Light Assault Rifle Subdweller Machine Gun Subdweller Machine Gun [Rating: 13] Favorites ----------- Power Light Ion Engine Engine Light Ion Engine Propulsion Aluminum Leg Leg Aluminum Leg Utility Scrap Shield Device Seismic Detector Storage Medium Storage Unit Protection Scrap Shield Weapon Heavy Battle Rifle Energy Cannon Subdweller Beam Cannon Ballistic Gun Heavy Battle Rifle Launcher Subdweller Shrapnel Launcher Special Weapon Mining Laser Build | -11 -10 -10 -10 ------- Run | Yrd Mat Min Sub Slots Evolved . | . . . . Power . | . . . . Propulsion . | . . . . Utility . | . . . . Weapon . | . . . . Parts Attached 30 | 7 12 2 9 Power 3 | 1 1 1 . Engine 3 | 1 1 1 . Core . | . . . . Reactor . | . . . . Propulsion 9 | 2 4 1 2 Treads . | . . . . Leg 9 | 2 4 1 2 Wheel . | . . . . Hover . | . . . . Flight . | . . . . Utility 6 | 2 2 . 2 Device 1 | 1 . . . Storage 2 | 1 1 . . Processor . | . . . . Hackware . | . . . . Protection 3 | . 1 . 2 Artifact . | . . . . Weapon 12 | 2 5 . 5 Energy Gun . | . . . . Energy Cannon 1 | . . . 1 Ballistic Gun 9 | 2 4 . 3 Ballistic Cannon . | . . . . Launcher 1 | . . . 1 Special Weapon 1 | . 1 . . Impact Weapon . | . . . . Slashing Weapon . | . . . . Piercing Weapon . | . . . . Special Melee Weapon . | . . . . Unidentified Prototypes . | . . . . Parts Lost 5 | . 1 1 3 Power 3 | . 1 1 1 Propulsion 1 | . . . 1 Utility 1 | . . . 1 Weapon . | . . . . Highest Loss Streak 2 | . 1 1 2 To Critical Strikes . | . . . . Average Backups 5 | 1 8 9 4 Power . | . 1 . . Propulsion 1 | . . 2 1 Utility . | . . 2 . Weapon 3 | 1 5 5 2 Tool/Special . | . . . . Unused Backups 6 | . 2 . 4 Power 1 | . . . 1 Propulsion 2 | . 1 . 1 Utility 1 | . . . 1 Weapon 2 | . 1 . 1 Tool/Special . | . . . . Average Slot Usage (%) 89 | . 99 98 87 Engine 13 | . 13 12 13 Leg 28 | . 28 28 28 Device 2 | . 13 . . Storage 4 | . 14 14 1 Protection 11 | . . 14 13 Ballistic Gun 27 | . 26 28 27 Peak Build Rating 13 | 7 10 10 13 Average Rating 11 | 5 9 9 12 On Entrance 6 | . 7 10 10 Avg Prop Armor Cover (%) . | . . . . Naked Turns . | . . . . Heaviest Build 33 | 14 24 24 33 Greatest Support 20 | 20 20 20 20 Greatest Overweight (x) 2 | . 1 1 2 Average Overweight (x) . | . . . . Largest Inventory Capacity 10 | 8 10 10 10 Average Capacity 6 | 7 9 10 5 Most Carried 10 | 3 10 10 10 Average Carried 5 | 1 8 9 5 Final Capacity 10 | 8 10 10 5 Final Carried 10 | 3 10 10 5 Class Distribution -------------------- 91% | Mutant 8% | Scavenger-Mutant Dominant Class ---------------- Scavenger-Mutant | -10/Materials Mutant | -10/Mines Mutant | -10/Subcaves Resources | -11 -10 -10 -10 ----------- Run | Yrd Mat Min Sub Matter Collected 1536 | 314 540 68 614 Remotely . | . . . . Salvage Created 1268 | 154 540 108 466 Parts 82 | 10 34 8 30 Haulers Intercepted 1 | . 1 . . Recyclers Shooed 1 | . . 1 . Parts Field Recycled . | . . . . Retrieved Matter . | . . . . Parts Self-Destructed 18 | . . . 18 Prevented . | . . . . Parts Restored . | . . . . Kills | -11 -10 -10 -10 ------- Run | Yrd Mat Min Sub Combat Hostiles Destroyed 29 | . 12 2 15 Guns 29 | . 12 2 15 Classes Destroyed 10 | 2 6 . 2 Worker 2 | . 1 1 . Builder 3 | . 3 . . Tunneler 4 | 4 . . . Hauler 1 | . 1 . . Recycler 2 | 1 1 . . Turret 1 | . . . 1 Watcher 1 | . 1 . . Swarmer 6 | . 3 . 3 Grunt 11 | . 9 2 . Subdweller 12 | . . . 12 Best Kill Streak 4 | 4 4 3 3 Combat Bots Only 3 | . 3 2 3 Max Kills in Single Turn 2 | 1 2 1 2 Gunslinging 1 | . . . 1 Exploded . | . . . . Melee . | . . . . Uniques/NPCs Destroyed . | . . . . Combat | -11 -10 -10 -10 -------- Run | Yrd Mat Min Sub Hostile Shots Fired 148 | . 53 11 84 Missed 45 | . 14 2 29 Hits 103 | . 39 9 55 Projectile 103 | . 39 9 55 Critical Strikes 3 | . 1 . 2 Damage Taken 1712 | . 489 107 1116 Core 276 | . 83 22 171 Absorbed by Shields . | . . . . Core Remaining (%) 100 | 100 . . . Volleys Fired 184 | 11 69 8 96 Largest 2 | 2 2 2 2 Hottest 100 | 40 100 46 100 Shots Fired 283 | 22 113 16 132 Gun 220 | 22 88 16 94 Cannon 29 | . . . 29 Launcher 7 | . . . 7 Special 27 | . 25 . 2 Kinetic 227 | 22 88 16 101 Thermal 56 | . 25 . 31 Explosive . | . . . . Electromagnetic . | . . . . Robot Hit Streak 30 | 6 10 6 30 Robot Miss Streak 6 | 1 6 2 4 Penetration Max . | . . . . Secondary Targets 5 | . 3 1 1 Max Gunslinging Chain 1 | . 1 1 1 Shots Hit Robots 152 | 15 66 13 58 Core Hits 81 | 6 35 7 33 Critical Kills 1 | . . . 1 Critical Parts Destroyed . | . . . . Critical Strikes 1 | . . . 1 Destroy 1 | . . . 1 Melee Attacks . | . . . . Impact . | . . . . Slashing . | . . . . Piercing . | . . . . Sneak Attacks . | . . . . Combat Hostiles . | . . . . Follow-up Attacks . | . . . . Damage Inflicted 2698 | 161 991 210 1336 Guns 2508 | 161 991 210 1146 Cannons . | . . . . Explosions 190 | . . . 190 Melee . | . . . . Ramming . | . . . . Kinetic 2698 | 161 991 210 1336 Thermal . | . . . . Explosive . | . . . . Electromagnetic . | . . . . Impact . | . . . . Slashing . | . . . . Piercing . | . . . . Highest Corruption . | . . . . Average Corruption . | . . . . Corruption Purged . | . . . . Corruption Blocked . | . . . . Overload Shots . | . . . . Overflow Damage . | . . . . Projectiles . | . . . . Explosions . | . . . . Melee . | . . . . Knockbacks . | . . . . Impact . | . . . . Kinetic . | . . . . Secondary . | . . . . Self-Inflicted Damage 8 | . . . 8 Shots 1 | . . . 1 Rammed . | . . . . Targets Rammed . | . . . . Kicked . | . . . . Crushed . | . . . . Highest Temperature 214 | . 142 18 214 Average Temperature 38 | . 37 9 119 Received Heat Transfer 697 | . 204 63 430 Siege Activations . | . . . . Martial Activations . | . . . . Shielding Activations . | . . . . Robots Disrupted . | . . . . Combat Hostiles . | . . . . Robots Corrupted . | . . . . Combat Hostiles . | . . . . Parts Fried . | . . . . Impact Corruptions . | . . . . Robots Melted . | . . . . Combat Hostiles . | . . . . Parts Melted . | . . . . Heat Transferred . | . . . . Parts Sabotaged . | . . . . Parts Stolen . | . . . . Parts Stripped . | . . . . Power Chain Reactions . | . . . . Alert | -11 -10 -10 -10 ------- Run | Yrd Mat Min Sub Maximum Alert Level . | . . . . Low Security (%) 100 | 100 100 100 . Level 1 . | . . . . Level 2 . | . . . . Level 3 . | . . . . Level 4 . | . . . . Level 5 . | . . . . High Security . | . . . . Max Security . | . . . . Peak Influence 69 | 10 69 50 . Initial 12 | . . 12 . Average 19 | 2 21 18 . Influence Increases 599 | 25 384 55 135 Destroy 0b10 Robot/C 360 | . 240 40 80 Destroy 0b10 Robot/NC 65 | 25 35 5 . Destroy Leader 74 | . 54 10 10 Successful Hack 24 | . 24 . . Destroy Structure 16 | . 16 . . Lose Combat Pursuer 60 | . 15 . 45 Influence Decreases 535 | 25 352 72 86 Entered New Map 28 | . . 20 8 Time Decay 487 | 25 352 52 58 Lost Part 20 | . . . 20 Squads Dispatched 3 | . 3 . . Investigation . | . . . . Extermination . | . . . . Reinforcement 3 | . 3 . . Assault . | . . . . Garrison . | . . . . Intercept . | . . . . Searches Triggered . | . . . . Construction Impeded . | . . . . Haulers Reinforced . | . . . . Active Scanning Responses . | . . . . Cargo Convoy Interrupts . | . . . . Stealth | -11 -10 -10 -10 --------- Run | Yrd Mat Min Sub Distress Signals 2 | . 2 . . Communications Jammed . | . . . . Distress Signals . | . . . . Times Spotted 41 | . 18 2 21 Peak Tracking Total 6 | . 6 2 5 Tactical Retreats 2 | . 1 . 1 Traps | -11 -10 -10 -10 ------- Run | Yrd Mat Min Sub Traps Triggered 2 | . 1 . 1 Indirectly . | . . . . Trap Hack Attempts . | . . . . Triggered . | . . . . Disarmed . | . . . . Reprogrammed . | . . . . Reused . | . . . . Traps Extracted . | . . . . Installed . | . . . . Triggered . | . . . . Machines | -11 -10 -10 -10 ---------- Run | Yrd Mat Min Sub Machines Disabled 1 | . . . 1 Max in Single Turn 1 | . . . 1 Machines Repaired . | . . . . Machines Dismantled . | . . . . Machines Sabotaged . | . . . . Overloaded Fab Kills . | . . . . Hacking | -11 -10 -10 -10 --------- Run | Yrd Mat Min Sub Machines Accessed 5 | . 5 . . Terminals 4 | . 4 . . Fabricators . | . . . . Repair Stations . | . . . . Recycling Units 1 | . 1 . . Scanalyzers . | . . . . Garrison Access . | . . . . Total Hacks 16 | . 16 . . Successful 11 | . 11 . . Failed 5 | . 5 . . Catastrophic . | . . . . Database Lockouts . | . . . . Manual 10 | . 10 . . Terminals 15 | . 15 . . Fabricators . | . . . . Repair Stations . | . . . . Recycling Units 1 | . 1 . . Scanalyzers . | . . . . Garrison Access . | . . . . Terminal Hacks 5 | . 5 . . Robot Analysis 2 | . 2 . . Terminal Index 1 | . 1 . . Hauler Manifests 1 | . 1 . . Zone Layout 1 | . 1 . . Fabricator Hacks . | . . . . Repair Station Hacks . | . . . . Recycling Unit Hacks 1 | . 1 . . Report Inventory 1 | . 1 . . Scanalyzer . | . . . . Garrison Access Hacks . | . . . . Unauthorized Hacks 5 | . 5 . . Terminals 5 | . 5 . . Botnet 2 | . 2 . . Skim 3 | . 3 . . Fabricators . | . . . . Repair Stations . | . . . . Recycling Units . | . . . . Scanalyzers . | . . . . Garrison Access . | . . . . Data Cores Recovered . | . . . . Used . | . . . . Hacking Detections 4 | . 4 . . Full Trace Events . | . . . . Feedback Events . | . . . . Feedback Blocked . | . . . . Robot Schematics Acquired . | . . . . Robots Built . | . . . . Authchips . | . . . . Time . | . . . . Total Robot Build Rating . | . . . . Part Schematics Acquired . | . . . . Parts Built . | . . . . Authchips . | . . . . Time . | . . . . Total Part Build Rating . | . . . . Part Studies Acquired . | . . . . Parts Repaired . | . . . . Time . | . . . . Parts Recycled . | . . . . Recycled Matter . | . . . . Retrieved Matter . | . . . . Retrieved Components . | . . . . Parts Scanalyzed . | . . . . Part Schematics Acquired . | . . . . Parts Damaged . | . . . . Bothacking | -11 -10 -10 -10 ------------ Run | Yrd Mat Min Sub Used RIF Installer . | . . . . Robots Hacked . | . . . . Non-combat . | . . . . Combat . | . . . . Robot Hacks Applied . | . . . . Relay Couplers Released . | . . . . Fabnet Peak Effective % . | . . . . Robots Rewired . | . . . . Allies Hacked . | . . . . Hacks Repelled . | . . . . Allies | -11 -10 -10 -10 -------- Run | Yrd Mat Min Sub Total Allies . | . . . . Largest Group . | . . . . Highest-Rated Group . | . . . . Highest-Rated Ally . | . . . . Total Orders . | . . . . Ally Attacks . | . . . . Total Damage . | . . . . Kills . | . . . . Allies Corrupted . | . . . . Allies Melted . | . . . . Intel | -11 -10 -10 -10 ------- Run | Yrd Mat Min Sub Active Infowar (turns) 1614 | 13 1269 . 332 Seismic 1614 | 13 1269 . 332 Robot Analysis Total 2 | . 2 . . Derelict Logs Recovered 1 | . . . 1 Drone Launches . | . . . . Drone Recoveries . | . . . . Exploration | -11 -10 -10 -10 ------------- Run | Yrd Mat Min Sub Turns Passed 8034 | 123 1307 170 6434 Spaces Moved 3484 | 67 607 71 2739 Core 1 | 1 . . . Treads . | . . . . Legs 3483 | 66 607 71 2739 Wheels . | . . . . Hover . | . . . . Flight . | . . . . Fastest Speed 50 | 50 120 120 120 Average Speed 176 | 118 145 186 183 Slowest Speed 260 | 120 190 190 260 Overloaded Moves . | . . . . Propulsion Burnouts . | . . . . Robots Hopped . | . . . . Potential Cave-ins . | . . . . Cave-ins Triggered . | . . . . Exploration Rate (%) 50 | 5 85 18 92 Regions Visited 3 Branch Regions 2 Pre-discovered Areas 1 | . . . 1 Known Exits Taken . | . . . . Unknown Exits Taken 3 | 1 1 1 . Scrap Searched 8 | . . . 8 Spaces Dug 28 | . 11 . 17 Terrain Destroyed 131 | . 23 . 108 Melee . | . . . . Projectile 49 | . 23 . 26 AOE 82 | . . . 82 Terrain Rammed . | . . . . Walls Destroyed . | . . . . Machines Disabled . | . . . . Actions | -11 -10 -10 -10 --------- Run | Yrd Mat Min Sub Total 5040 | 87 867 94 3992 Wait 1255 | . 153 12 1090 Move 3481 | 66 606 70 2739 Hop . | . . . . Pick Up 26 | 3 10 1 12 Fast Attach 11 | 7 1 . 3 Attach 3 | . . 1 2 Detach . | . . . . Swap 44 | . 20 1 23 Drop 26 | . 8 1 17 Fire 184 | 11 69 8 96 Melee . | . . . . Ram . | . . . . Kick . | . . . . Crush . | . . . . Escape Stasis . | . . . . Rewire . | . . . . Trap . | . . . . Miscellaneous 10 | . . . 10 Route ------- -11/Scrapyard -10/Materials (discovered 4 exits: [*Mat x2] / [*Min] / [*Sub]) -10/Mines (discovered 2 exits: [*Mat] / [*Sub]) -10/Subcaves (discovered 3 exits: [*Mat x2] / [*Rec]) History --------- Turn | Location | Event 5 | -11/Scrapyard | Discovered new exit (range 16) 124 | -11/Scrapyard | Entered Materials 245 | -10/Materials | Discovered new exit (range 10) 309 | -10/Materials | Build established: Mutant 374 | -10/Materials | Discovered new exit (range 13) 1037 | -10/Materials | Build established: Scavenger-Mutant 1179 | -10/Materials | Discovered new exit (range 12) 1257 | -10/Materials | Discovered new exit (range 16) 1431 | -10/Materials | Entered Mines 1558 | -10/Mines | Discovered new exit (range 11) 1595 | -10/Mines | Discovered new exit (range 5) 1601 | -10/Mines | Entered Subcaves 1601 | -10/Subcaves | Learned location of Zion (-7) 1685 | -10/Subcaves | Core integrity fell below 50% 1703 | -10/Subcaves | Build established: Mutant 4393 | -10/Subcaves | Shifting Twisted Machinery released Sub. Shrapnel Launcher 4879 | -10/Subcaves | Shifting Twisted Machinery released Sub. Laser 4968 | -10/Subcaves | Core integrity fell below 20% 5628 | -10/Subcaves | Shifting Twisted Machinery released Sub. Monowheel 5788 | -10/Subcaves | A swath of the cavern ceiling suddenly collapsed 6905 | -10/Subcaves | Shifting Twisted Machinery released Sub. Monowheel 7028 | -10/Subcaves | Discovered new exit (range 12) 7216 | -10/Subcaves | Discovered new exit (range 16) 7317 | -10/Subcaves | Ambushed by Subdweller buried in earth 7676 | -10/Subcaves | Shifting Twisted Machinery released Scrap Shield 8018 | -10/Subcaves | Discovered new exit (range 7) 8021 | -10/Subcaves | A Subdweller sparked back to life 8021 | -10/Subcaves | A Subdweller sparked back to life 8021 | -10/Subcaves | A Subdweller sparked back to life 8035 | -10/Subcaves | Destroyed by TH-XIE(R) with Subdweller Beam Cannon Last Messages --------------- 07318_ DH-84C(R): "SLEEPOVER!" 07323_ Sub. Shrapnel Launcher shoots sparks and powers down. 07325_ Dropped Broken Sub. Shrapnel Launcher. 07340_ DH-84C(R) destroyed. 07362_ Scrap Shield Fragment affixed to Scrap Shield (+49). 07363_ Acquired 25 matter. 07367_ Scrap Shield Fragment affixed to Scrap Shield (+20). 07537_ Acquired 29 matter. 07546_ Acquired 2 matter. Scrap Shield falls loose from the Twisted Machinery. 07689_ Acquired Scrap Shield. 07747_ Acquired 14 matter. 07749_ Acquired 11 matter. 08018_ EXIT=FOUND 08021_ Z5-VZO(R) creaks and sparks as it begins to move. 08021_ TM-DRD(R) creaks and sparks as it begins to move. 08021_ US-8H2(R) creaks and sparks as it begins to move. 08027_ Lgt. Ion Engine destroyed. 08029_ Critical hit (Meltdown: +250). 08033_ Scrap Shield destroyed. Map ----- +----------------------------------------------------+ | ?????????????????????????????????????????????? | | ?????????????????????????????????????????????? | | ?????????????????????????????????????????????? | | ?????????????????????????????????????????????? | | ?????????????????????????????????????????????? | | ?????????????????????????????????????????????? | | ?????????????????????????????????????????????? | | ?????????????????????????????????????????????? | | ?????????????????????????????????????????????? | | ?????????????????????????????????????????????? | | ?????????????????????????????????????????????? | | ?????????????????????????????????????????????? | | ????????????????????????????????###??????????? | | ????????????????????????????????# ###?######## | | ???????????????????######?????### ### ## | | ???????????????????# & ##???## ## | | ???????????????????#< < ##### ## | | ??????????????????## < ## | | ????????????????### " ## #### ## | | ???????????????## < ######??###### | | ???????????????# & ## #???????????# | | ???????????????#####RRR;# ###?########### | | ????????????????#### R## ## ### ## # #### | | ??????????????#;# ; ;## ## | | ??????????????#; ;; ;# | | ??????????????# R @ ;### ### # # ## | | ??????????????#; < ;#?## ##?########### | | ??????????????# ##??###???????????# | | ??????????????#; ;;;;;;?????????????????# | | ??????????????# #######????????????????#### | | ?????????????# ??????????????????????????## | | ?????????????# ????????????????????????????? | | ?????????????# ????????????????????????????? | | ?????????????# ?????????????????????????????? | | ?????????????## ?????????????????????????????? | | ??????????????#??????????????????????????????? | | ?????????????????????????????????????????????? | | ?????????????????????????????????????????????? | | ?????????????????????????????????????????####? | | ???????????????????????????????????????##"""#? | | ???????????????????????????????????????#""" ## | | ???????????????????????????????????????#"" "# | | ???????????????????????????????????????#" ""? | | ???????????????????????????????????????# """? | | ???????????????????????????????????????# " "#? | | ???????????????????????????????????????#""" ## | | ???????????????????????????????????????#""" "# | | ???????????????????????????????????????##"" # | | ????????????????????????????????????????#" | | ????????????????????????????????????????## # | +----------------------------------------------------+ Best States ------------- Heat Dissipation 25 Energy Generation 10 Energy Capacity 250 Matter Stores 300 Matter Capacity 300 Sight Range 16 Terrain Scan Density 10 Armor Coverage 800 Evasion (%) 55 Item Schematics ----------------- None Robot Schematics ------------------ None Fabricated ------------ Nothing Repaired ---------- Nothing Studied --------- None Alien Tech Used ----------------- None Achievements -------------- None Challenges ------------ None Game ------ Seed SeismicSwarmOptics Manual? 0 Play Time 00:33:49 Cumulative 417.8 hours Start 2025.11.10 @ 07:06:10 End 2025.11.10 @ 07:38:21 Sessions 1 Manual Loads 0 Difficulty Rogue Special Mode None Game No. 156 Rogue 135 Adventurer 21 Explorer 0 Win Type - Total 21 Types 13/1/4/1/0/0/0/1/0/1 Lore% 60 Gallery% 73 Achievement% 54 Wizard Run 0 Options --------- Layout 1 ASCII 0 Keyboard 0 Movement Mouse Keybinds 0 Fullscreen 2 Font 32/SmallcapsGlow Map View 77x35 Zoom Use 0% Tactical HUD 1 Map Filters NONE Filters NONE Steam 1 RUN: 2a7d5b68-adc7-48c4-aa62-3248a51c66e9